[Event "Live Chess"]
[Site "Chess.com"]
[Date "2024.06.02"]
[Round "-"]
[White "gobbles19"]
[Black "Dhaydon19"]
[Result "0-1"]
[WhiteElo "2303"]
[BlackElo "2685"]
[TimeControl "300"]
[EndTime "18:44:24 PDT"]
[Termination "Dhaydon19 won by resignation"]

1. e4 {[%clk 0:04:58]} 1... c6 {[%clk 0:04:59.2]} 2. d4 {[%clk 0:04:56.7]} 2...
d5 {[%clk 0:04:57.7]} 3. e5 {[%clk 0:04:55.5]} 3... c5 {[%clk 0:04:56.3]} 4.
dxc5 {[%clk 0:04:54.2]} 4... Nc6 {[%clk 0:04:54.4]} 5. Bb5 {[%clk 0:04:51.6]}
5... e6 {[%clk 0:04:52.6]} 6. Be3 {[%clk 0:04:48]} 6... Bd7 {[%clk 0:04:51.4]}
7. Bxc6 {[%clk 0:04:35.2]} 7... Bxc6 {[%clk 0:04:49.1]} 8. Nf3 {[%clk
0:04:34.2]} 8... Ne7 {[%clk 0:04:47.6]} 9. c3 {[%clk 0:04:30.5]} 9... Qc7 {[%clk
0:04:44.6]} 10. O-O {[%clk 0:04:28.5]} 10... Nf5 {[%clk 0:04:42.1]} 11. Bd4
{[%clk 0:04:26.8]} 11... Bb5 {[%clk 0:04:40.4]} 12. Re1 {[%clk 0:04:25.2]} 12...
Bxc5 {[%clk 0:04:39.8]} 13. Nbd2 {[%clk 0:04:20.1]} 13... Nxd4 {[%clk
0:04:37.2]} 14. cxd4 {[%clk 0:04:20]} 14... Be7 {[%clk 0:04:36]} 15. Rc1 {[%clk
0:04:18.6]} 15... Qb6 {[%clk 0:04:31.7]} 16. Nb3 {[%clk 0:04:11.7]} 16... O-O
{[%clk 0:04:26]} 17. Nc5 {[%clk 0:04:09.3]} 17... Rac8 {[%clk 0:04:24.2]} 18. a4
{[%clk 0:03:58.4]} 18... Bc6 {[%clk 0:04:17.1]} 19. Qd2 {[%clk 0:03:53.5]} 19...
a5 {[%clk 0:04:15.1]} 20. Re3 {[%clk 0:03:46.7]} 20... Qb4 {[%clk 0:04:11.7]}
21. Qxb4 {[%clk 0:03:39.7]} 21... axb4 {[%clk 0:04:09.5]} 22. b3 {[%clk
0:03:36.1]} 22... Rc7 {[%clk 0:04:01.4]} 23. g3 {[%clk 0:03:26.3]} 23... Rfc8
{[%clk 0:03:58.6]} 24. Re2 {[%clk 0:03:23.7]} 24... Be8 {[%clk 0:03:48.5]} 25.
a5 {[%clk 0:03:00]} 25... Bb5 {[%clk 0:03:42.9]} 26. Rec2 {[%clk 0:02:53.9]}
26... h6 {[%clk 0:03:39.7]} 27. Ne1 {[%clk 0:02:47.1]} 27... Ra8 {[%clk
0:03:37.5]} 28. Ned3 {[%clk 0:02:37.6]} 28... Rxa5 {[%clk 0:03:29.6]} 29. Nxb4
{[%clk 0:02:34.4]} 29... b6 {[%clk 0:03:26]} 30. Ncd3 {[%clk 0:02:32]} 30...
Rxc2 {[%clk 0:03:24.7]} 31. Rxc2 {[%clk 0:02:31.3]} 31... Ra1+ {[%clk
0:03:18.9]} 32. Kg2 {[%clk 0:02:29.7]} 32... Rd1 {[%clk 0:03:14.5]} 33. Nb2
{[%clk 0:02:21.2]} 33... Rxd4 {[%clk 0:03:10.1]} 34. Nc6 {[%clk 0:02:19.2]}
34... Bxc6 {[%clk 0:03:08]} 35. Rxc6 {[%clk 0:02:19.1]} 35... Rd2 {[%clk
0:03:06.3]} 36. Na4 {[%clk 0:02:16.6]} 36... b5 {[%clk 0:03:05.1]} 37. Nb6
{[%clk 0:02:07]} 37... Bg5 {[%clk 0:02:56.7]} 38. Nd7 {[%clk 0:01:48.9]} 38...
Be7 {[%clk 0:02:27.7]} 39. Rc8+ {[%clk 0:01:46.2]} 39... Kh7 {[%clk 0:02:25.9]}
40. Rb8 {[%clk 0:01:44.9]} 40... b4 {[%clk 0:02:23.6]} 41. Rb7 {[%clk
0:01:40.8]} 41... Kg6 {[%clk 0:02:22.2]} 42. Rb5 {[%clk 0:01:24.4]} 42... Rb2
{[%clk 0:02:15.2]} 43. Nb8 {[%clk 0:01:12.2]} 43... Rxb3 {[%clk 0:02:10.9]} 44.
Nc6 {[%clk 0:01:11.4]} 44... Bf8 {[%clk 0:02:00.8]} 45. Rb8 {[%clk 0:01:09.8]}
45... Bc5 {[%clk 0:01:59]} 46. Rb5 {[%clk 0:01:07.6]} 46... Rc3 {[%clk
0:01:56.5]} 47. Nxb4 {[%clk 0:01:05.5]} 47... Bxb4 {[%clk 0:01:51.1]} 48. Rxb4
{[%clk 0:01:05.4]} 48... Rc4 {[%clk 0:01:49.6]} 49. Rb7 {[%clk 0:01:00.3]} 49...
Re4 {[%clk 0:01:47.9]} 50. f4 {[%clk 0:00:59.4]} 50... Re2+ {[%clk 0:01:46.9]}
51. Kg1 {[%clk 0:00:57.8]} 51... h5 {[%clk 0:01:45.7]} 52. Rd7 {[%clk
0:00:53.2]} 52... h4 {[%clk 0:01:35.7]} 53. Rd8 {[%clk 0:00:41.6]} 53... h3
{[%clk 0:01:30.7]} 54. Rd7 {[%clk 0:00:39.2]} 54... f6 {[%clk 0:01:24.9]} 55.
exf6 {[%clk 0:00:36.8]} 55... gxf6 {[%clk 0:01:23.2]} 56. Rd8 {[%clk 0:00:35.2]}
56... Kf5 {[%clk 0:01:21.6]} 57. Rh8 {[%clk 0:00:32.8]} 57... Kg4 {[%clk
0:01:20]} 0-1

[Event "Live Chess"]
[Site "Chess.com"]
[Date "2024.06.02"]
[Round "-"]
[White "e4evr"]
[Black "KeithArkell"]
[Result "1-0"]
[WhiteElo "2227"]
[BlackElo "2442"]
[TimeControl "300"]
[EndTime "18:45:24 PDT"]
[Termination "e4evr won by checkmate"]

1. c3 {[%clk 0:04:59.1]} 1... d5 {[%clk 0:04:57.6]} 2. Qc2 {[%clk 0:04:58.7]}
2... Nf6 {[%clk 0:04:55]} 3. Qd3 {[%clk 0:04:57.7]} 3... c5 {[%clk 0:04:53.9]}
4. Kd1 {[%clk 0:04:56.9]} 4... Nc6 {[%clk 0:04:53.1]} 5. f4 {[%clk 0:04:56]}
5... g6 {[%clk 0:04:52]} 6. Qg3 {[%clk 0:04:55.2]} 6... Bf5 {[%clk 0:04:50]} 7.
Qe1 {[%clk 0:04:53.6]} 7... d4 {[%clk 0:04:48.6]} 8. c4 {[%clk 0:04:52.5]} 8...
Bg7 {[%clk 0:04:44.2]} 9. d3 {[%clk 0:04:51.6]} 9... e5 {[%clk 0:04:42.4]} 10.
h3 {[%clk 0:04:49.8]} 10... h5 {[%clk 0:04:40.9]} 11. g3 {[%clk 0:04:48.2]}
11... e4 {[%clk 0:04:38.7]} 12. Bg2 {[%clk 0:04:46.4]} 12... O-O {[%clk
0:04:37.1]} 13. Nd2 {[%clk 0:04:44.1]} 13... exd3 {[%clk 0:04:36.3]} 14. Ngf3
{[%clk 0:04:42.3]} 14... dxe2+ {[%clk 0:04:34.2]} 15. Qxe2 {[%clk 0:04:41.5]}
15... Re8 {[%clk 0:04:33.3]} 16. Qf2 {[%clk 0:04:37.6]} 16... Nb4 {[%clk
0:04:32.4]} 17. Ne5 {[%clk 0:04:34.5]} 17... Bc2+ {[%clk 0:04:31.4]} 18. Ke1
{[%clk 0:04:33.6]} 18... Nd7 {[%clk 0:04:30.1]} 19. Kf1 {[%clk 0:04:31.5]} 19...
Nxe5 {[%clk 0:04:29]} 20. fxe5 {[%clk 0:04:30.6]} 20... Rxe5 {[%clk 0:04:27.3]}
21. Nf3 {[%clk 0:04:29.7]} 21... Nd3 {[%clk 0:04:23.4]} 22. Qxc2 {[%clk
0:04:28.1]} 22... Qf6 {[%clk 0:04:22.5]} 23. Qxd3 {[%clk 0:04:26.7]} 23... Rae8
{[%clk 0:04:21.1]} 24. Bf4 {[%clk 0:04:22.8]} 24... Re2 {[%clk 0:04:13.6]} 25.
Re1 {[%clk 0:04:19.9]} 25... Rxe1+ {[%clk 0:04:11.9]} 26. Nxe1 {[%clk
0:04:19.1]} 26... g5 {[%clk 0:04:11.1]} 27. Qf3 {[%clk 0:03:59.1]} 27... gxf4
{[%clk 0:04:08.4]} 28. Qxf4 {[%clk 0:03:58.4]} 28... Qe6 {[%clk 0:04:05]} 29.
Nf3 {[%clk 0:03:50.9]} 29... Qe2+ {[%clk 0:04:03.7]} 30. Kg1 {[%clk 0:03:49.9]}
30... d3 {[%clk 0:03:53.5]} 31. Kh2 {[%clk 0:03:47.8]} 31... Qxb2 {[%clk
0:03:23.8]} 32. Ng5 {[%clk 0:03:25.7]} 32... Qf6 {[%clk 0:03:11.1]} 33. Qxf6
{[%clk 0:03:23.6]} 33... Bxf6 {[%clk 0:03:09.8]} 34. Ne4 {[%clk 0:03:21.8]}
34... Bd4 {[%clk 0:03:07.7]} 35. Rd1 {[%clk 0:03:13.9]} 35... f5 {[%clk
0:03:06.8]} 36. Nd6 {[%clk 0:03:10.9]} 36... Re2 {[%clk 0:02:53.5]} 37. Nxf5
{[%clk 0:03:06.4]} 37... Be5 {[%clk 0:02:51.1]} 38. Rxd3 {[%clk 0:03:04.4]}
38... Rxa2 {[%clk 0:02:48.3]} 39. h4 {[%clk 0:03:00.8]} 39... Kf7 {[%clk
0:02:45.5]} 40. Kh3 {[%clk 0:02:58.7]} 40... Ke6 {[%clk 0:02:43]} 41. Ne3 {[%clk
0:02:55.4]} 41... Bd4 {[%clk 0:02:41.5]} 42. Bxb7 {[%clk 0:02:51]} 42... a5
{[%clk 0:02:40.2]} 43. Bd5+ {[%clk 0:02:47.5]} 43... Ke5 {[%clk 0:02:36.9]} 44.
g4 {[%clk 0:02:43.9]} 44... a4 {[%clk 0:02:28.1]} 45. gxh5 {[%clk 0:02:40.7]}
45... a3 {[%clk 0:02:27.3]} 46. Ng4+ {[%clk 0:02:39.8]} 46... Kd6 {[%clk
0:02:23.7]} 47. h6 {[%clk 0:02:37.1]} 47... Ra1 {[%clk 0:02:15.6]} 48. Rxd4
{[%clk 0:02:12.8]} 48... cxd4 {[%clk 0:02:14.4]} 49. h7 {[%clk 0:02:12.2]} 49...
a2 {[%clk 0:02:00.1]} 50. h8=Q {[%clk 0:02:10.2]} 50... Rh1+ {[%clk 0:01:55.5]}
51. Bxh1 {[%clk 0:02:09.4]} 51... a1=Q {[%clk 0:01:54.8]} 52. Qe5+ {[%clk
0:02:08.2]} 52... Kd7 {[%clk 0:01:52.4]} 53. Nf6+ {[%clk 0:02:07.3]} 53... Kc8
{[%clk 0:01:51.3]} 54. Qc5+ {[%clk 0:02:02.7]} 54... Kb8 {[%clk 0:01:47.7]} 55.
Nd7# {[%clk 0:01:57.6]} 1-0

[Event "Live Chess"]
[Site "Chess.com"]
[Date "2024.06.02"]
[Round "-"]
[White "lyricalschemes"]
[Black "ShanthamGrarks"]
[Result "1/2-1/2"]
[WhiteElo "2216"]
[BlackElo "1880"]
[TimeControl "300"]
[EndTime "18:45:38 PDT"]
[Termination "Game drawn by agreement"]

1. e4 {[%clk 0:04:55.4]} 1... e5 {[%clk 0:04:57.6]} 2. Nc3 {[%clk 0:04:53.5]}
2... Nc6 {[%clk 0:04:47.2]} 3. Bc4 {[%clk 0:04:51]} 3... Nf6 {[%clk 0:04:44.9]}
4. d3 {[%clk 0:04:47.5]} 4... Bc5 {[%clk 0:04:43]} 5. Nge2 {[%clk 0:04:42.5]}
5... O-O {[%clk 0:04:36.4]} 6. O-O {[%clk 0:04:38.4]} 6... Nd4 {[%clk
0:04:34.2]} 7. Nxd4 {[%clk 0:04:33.4]} 7... Bxd4 {[%clk 0:04:32.4]} 8. Be3
{[%clk 0:04:31]} 8... Bxe3 {[%clk 0:04:13.3]} 9. fxe3 {[%clk 0:04:30.9]} 9... c6
{[%clk 0:04:12.1]} 10. d4 {[%clk 0:04:28.1]} 10... d5 {[%clk 0:04:02.4]} 11.
dxe5 {[%clk 0:04:26.5]} 11... Nxe4 {[%clk 0:03:57.7]} 12. Nxe4 {[%clk
0:04:22.9]} 12... dxe4 {[%clk 0:03:56.8]} 13. Qd4 {[%clk 0:04:20.4]} 13... Qxd4
{[%clk 0:03:52]} 14. exd4 {[%clk 0:04:20.3]} 14... Be6 {[%clk 0:03:50.4]} 15.
Bxe6 {[%clk 0:04:19]} 15... fxe6 {[%clk 0:03:49.3]} 16. c3 {[%clk 0:04:15.3]}
16... Rf5 {[%clk 0:03:33.5]} 17. Rae1 {[%clk 0:04:11.2]} 17... Raf8 {[%clk
0:03:30.6]} 18. g3 {[%clk 0:04:10.7]} 18... g5 {[%clk 0:03:11.6]} 19. Kg2 {[%clk
0:04:09]} 19... g4 {[%clk 0:03:08.8]} 20. Rxf5 {[%clk 0:04:05.3]} 20... exf5
{[%clk 0:03:06.4]} 21. Re2 {[%clk 0:04:03.5]} 21... Kf7 {[%clk 0:03:04.6]} 22.
Re3 {[%clk 0:03:58.5]} 22... Ke6 {[%clk 0:03:00.3]} 23. Kf2 {[%clk 0:03:54.9]}
1/2-1/2

[Event "Live Chess"]
[Site "Chess.com"]
[Date "2024.06.02"]
[Round "-"]
[White "CarmelJane"]
[Black "Crowded_House"]
[Result "1-0"]
[WhiteElo "2049"]
[BlackElo "1699"]
[TimeControl "300"]
[EndTime "18:45:45 PDT"]
[Termination "CarmelJane won by checkmate"]

1. d4 {[%clk 0:04:54.4]} 1... e6 {[%clk 0:04:58.3]} 2. e4 {[%clk 0:04:51.4]}
2... d5 {[%clk 0:04:57.5]} 3. Nd2 {[%clk 0:04:49.9]} 3... dxe4 {[%clk 0:04:56]}
4. Nxe4 {[%clk 0:04:48.9]} 4... Bd7 {[%clk 0:04:55.9]} 5. Bd3 {[%clk 0:04:46.7]}
5... Bc6 {[%clk 0:04:55.1]} 6. Nf3 {[%clk 0:04:45.4]} 6... Nd7 {[%clk
0:04:52.1]} 7. O-O {[%clk 0:04:42.9]} 7... Ngf6 {[%clk 0:04:51.3]} 8. Re1 {[%clk
0:04:35.4]} 8... Be7 {[%clk 0:04:47.2]} 9. Ng3 {[%clk 0:04:32.3]} 9... O-O
{[%clk 0:04:44.1]} 10. Ne5 {[%clk 0:04:29.2]} 10... Nxe5 {[%clk 0:04:30.3]} 11.
dxe5 {[%clk 0:04:29.1]} 11... Nd5 {[%clk 0:04:22.2]} 12. Qh5 {[%clk 0:04:24.1]}
12... g6 {[%clk 0:04:16.5]} 13. Qe2 {[%clk 0:04:05.1]} 13... Bg5 {[%clk
0:04:07]} 14. Bxg5 {[%clk 0:03:55.4]} 14... Qxg5 {[%clk 0:04:04.1]} 15. Ne4
{[%clk 0:03:54.5]} 15... Qe7 {[%clk 0:03:57.1]} 16. c4 {[%clk 0:03:51.7]} 16...
Nb4 {[%clk 0:03:49.4]} 17. Nf6+ {[%clk 0:03:50.3]} 17... Kg7 {[%clk 0:03:45.4]}
18. Qe3 {[%clk 0:03:35.8]} 18... Nxd3 {[%clk 0:03:35.9]} 19. Qxd3 {[%clk
0:03:34.6]} 19... Rad8 {[%clk 0:03:27.9]} 20. Qh3 {[%clk 0:03:33.4]} 20... h5
{[%clk 0:03:26.2]} 21. Qh4 {[%clk 0:03:31.8]} 21... Rh8 {[%clk 0:03:23.1]} 22.
Nxh5+ {[%clk 0:03:29.7]} 22... Kf8 {[%clk 0:03:17.9]} 23. Qxe7+ {[%clk
0:03:20.8]} 23... Kxe7 {[%clk 0:03:16.1]} 24. Nf6 {[%clk 0:03:20.4]} 24... Rd2
{[%clk 0:03:06.4]} 25. b4 {[%clk 0:02:48]} 25... a6 {[%clk 0:03:00.9]} 26. Kf1
{[%clk 0:02:44.8]} 26... Rhd8 {[%clk 0:02:58.7]} 27. a4 {[%clk 0:02:27.2]} 27...
b5 {[%clk 0:02:36.7]} 28. axb5 {[%clk 0:02:20.5]} 28... axb5 {[%clk 0:02:34.8]}
29. c5 {[%clk 0:02:19.8]} 29... R8d4 {[%clk 0:02:23.9]} 30. Ra6 {[%clk
0:02:11.8]} 30... Be8 {[%clk 0:02:18.4]} 31. c6 {[%clk 0:02:06.9]} 31... Rxb4
{[%clk 0:02:13.5]} 32. Ra7 {[%clk 0:02:03.3]} 32... Rbb2 {[%clk 0:01:47.7]} 33.
Rxc7+ {[%clk 0:01:58.9]} 33... Kf8 {[%clk 0:01:46.7]} 34. Ne4 {[%clk 0:01:50.6]}
34... Rd5 {[%clk 0:01:38.8]} 35. Rc8 {[%clk 0:01:18.8]} 35... Rxe5 {[%clk
0:01:31.8]} 36. Rxe8+ {[%clk 0:00:58.1]} 36... Kg7 {[%clk 0:01:28.6]} 37. c7
{[%clk 0:00:51.4]} 37... Rc2 {[%clk 0:01:17.6]} 38. c8=Q {[%clk 0:00:49.2]}
38... Rxc8 {[%clk 0:01:17.2]} 39. Rxc8 {[%clk 0:00:47.9]} 39... f6 {[%clk
0:01:08.8]} 40. Rb8 {[%clk 0:00:46.4]} 40... f5 {[%clk 0:01:06.7]} 41. Nd6
{[%clk 0:00:45.6]} 41... Rd5 {[%clk 0:01:00.6]} 42. Ne8+ {[%clk 0:00:43.7]}
42... Kf7 {[%clk 0:00:57.8]} 43. Nc7 {[%clk 0:00:42.2]} 43... Rc5 {[%clk
0:00:55.3]} 44. Nxb5 {[%clk 0:00:40.4]} 44... Kf6 {[%clk 0:00:53.3]} 45. Nd6
{[%clk 0:00:39.6]} 45... Rc7 {[%clk 0:00:49.6]} 46. Rf8+ {[%clk 0:00:37.5]}
46... Ke7 {[%clk 0:00:47.7]} 47. Rf7+ {[%clk 0:00:37]} 47... Kd8 {[%clk
0:00:45.8]} 48. Rxc7 {[%clk 0:00:36.9]} 48... Kxc7 {[%clk 0:00:45.5]} 49. Ne8+
{[%clk 0:00:34.7]} 49... Kd7 {[%clk 0:00:43.7]} 50. Ng7 {[%clk 0:00:34.6]} 50...
Ke7 {[%clk 0:00:41.5]} 51. Nxe6 {[%clk 0:00:34.1]} 51... Kf7 {[%clk 0:00:41.4]}
52. Nd4 {[%clk 0:00:33.4]} 52... Kf6 {[%clk 0:00:40.6]} 53. f4 {[%clk
0:00:33.3]} 53... g5 {[%clk 0:00:40.1]} 54. g3 {[%clk 0:00:33.2]} 54... gxf4
{[%clk 0:00:38.9]} 55. gxf4 {[%clk 0:00:33.1]} 55... Kf7 {[%clk 0:00:37.4]} 56.
Re6 {[%clk 0:00:32.2]} 56... Kg7 {[%clk 0:00:36.1]} 57. h4 {[%clk 0:00:31.6]}
57... Kf7 {[%clk 0:00:35.1]} 58. h5 {[%clk 0:00:31.5]} 58... Kg7 {[%clk
0:00:34.2]} 59. h6+ {[%clk 0:00:31.4]} 59... Kh7 {[%clk 0:00:33.4]} 60. Kf2
{[%clk 0:00:27.3]} 60... Kg8 {[%clk 0:00:31.8]} 61. Re7 {[%clk 0:00:26.9]} 61...
Kh8 {[%clk 0:00:30.4]} 62. Ra7 {[%clk 0:00:26.8]} 62... Kg8 {[%clk 0:00:29.3]}
63. Kg3 {[%clk 0:00:26.7]} 63... Kh8 {[%clk 0:00:28.7]} 64. Kh4 {[%clk
0:00:26.6]} 64... Kg8 {[%clk 0:00:28.4]} 65. Kh5 {[%clk 0:00:26.5]} 65... Kh8
{[%clk 0:00:28]} 66. Kg6 {[%clk 0:00:26.2]} 66... Kg8 {[%clk 0:00:27.9]} 67.
Ra8# {[%clk 0:00:25.8]} 1-0

[Event "Live Chess"]
[Site "Chess.com"]
[Date "2024.06.02"]
[Round "-"]
[White "Tushinskiy"]
[Black "MagnersCarlsberg2870"]
[Result "1-0"]
[WhiteElo "2269"]
[BlackElo "1801"]
[TimeControl "300"]
[EndTime "18:46:36 PDT"]
[Termination "Tushinskiy won by checkmate"]

1. d4 {[%clk 0:04:48.8]} 1... Nf6 {[%clk 0:04:58.3]} 2. c3 {[%clk 0:04:48.7]}
2... b6 {[%clk 0:04:55.4]} 3. Nf3 {[%clk 0:04:44.3]} 3... Bb7 {[%clk 0:04:54.3]}
4. Bf4 {[%clk 0:04:40.8]} 4... d6 {[%clk 0:04:52.4]} 5. Bg3 {[%clk 0:04:35.4]}
5... Nbd7 {[%clk 0:04:51.1]} 6. Nbd2 {[%clk 0:04:34.4]} 6... g6 {[%clk
0:04:49.2]} 7. Qc2 {[%clk 0:04:33.2]} 7... Bg7 {[%clk 0:04:47.9]} 8. e4 {[%clk
0:04:21.7]} 8... c5 {[%clk 0:04:46.1]} 9. d5 {[%clk 0:04:20.2]} 9... h5 {[%clk
0:04:42.1]} 10. Bd3 {[%clk 0:04:17.9]} 10... Ng4 {[%clk 0:04:36.4]} 11. h3
{[%clk 0:04:16.3]} 11... Nge5 {[%clk 0:04:34.4]} 12. Nxe5 {[%clk 0:04:15.4]}
12... Bxe5 {[%clk 0:04:33.3]} 13. f4 {[%clk 0:04:13.7]} 13... Bg7 {[%clk
0:04:27.3]} 14. Nf3 {[%clk 0:04:12.9]} 14... Qc7 {[%clk 0:04:12.6]} 15. a4
{[%clk 0:04:09.3]} 15... c4 {[%clk 0:04:11]} 16. Be2 {[%clk 0:04:07.5]} 16...
Qc5 {[%clk 0:04:10]} 17. Bf2 {[%clk 0:04:05.8]} 17... Qc7 {[%clk 0:04:03.9]} 18.
Bd4 {[%clk 0:04:04.8]} 18... Bxd4 {[%clk 0:04:02.1]} 19. Nxd4 {[%clk 0:04:04.7]}
19... e5 {[%clk 0:03:55.7]} 20. dxe6 {[%clk 0:04:02.6]} 20... fxe6 {[%clk
0:03:52.6]} 21. Nxe6 {[%clk 0:04:02.5]} 21... Qc6 {[%clk 0:03:45.7]} 22. Bf3
{[%clk 0:04:01.4]} 22... Qc8 {[%clk 0:03:38.2]} 23. O-O {[%clk 0:03:58]} 23...
Kf7 {[%clk 0:03:35]} 24. Nd4 {[%clk 0:03:55.7]} 24... Qc5 {[%clk 0:03:31.6]} 25.
Rae1 {[%clk 0:03:51.4]} 25... Rae8 {[%clk 0:03:29.1]} 26. Kh1 {[%clk 0:03:47.4]}
26... Kg7 {[%clk 0:03:25.9]} 27. Re2 {[%clk 0:03:37.7]} 27... Rhf8 {[%clk
0:03:24.6]} 28. f5 {[%clk 0:03:35.2]} 28... Qe5 {[%clk 0:02:43.2]} 29. Qd2
{[%clk 0:03:26.8]} 29... Nc5 {[%clk 0:02:37.4]} 30. Qg5 {[%clk 0:03:23.8]} 30...
Rf6 {[%clk 0:02:30.8]} 31. Bxh5 {[%clk 0:03:16.6]} 31... Nxe4 {[%clk 0:02:25.5]}
32. Rxe4 {[%clk 0:03:15.4]} 32... Qxe4 {[%clk 0:02:24]} 33. Bxg6 {[%clk
0:03:14.8]} 33... Rxg6 {[%clk 0:01:43.7]} 34. Qxg6+ {[%clk 0:03:03.3]} 34... Kf8
{[%clk 0:01:42.6]} 35. Ne6+ {[%clk 0:02:58.6]} 35... Rxe6 {[%clk 0:01:32.2]} 36.
fxe6+ {[%clk 0:02:58.5]} 36... Ke7 {[%clk 0:01:29.8]} 37. Rf7+ {[%clk
0:02:56.8]} 37... Kd8 {[%clk 0:01:28.1]} 38. Qg8# {[%clk 0:02:56.1]} 1-0

[Event "Live Chess"]
[Site "Chess.com"]
[Date "2024.06.02"]
[Round "-"]
[White "nigelst"]
[Black "ACM42"]
[Result "0-1"]
[WhiteElo "1740"]
[BlackElo "2171"]
[TimeControl "300"]
[EndTime "18:47:14 PDT"]
[Termination "ACM42 won by checkmate"]

1. e4 {[%clk 0:04:56.8]} 1... e6 {[%clk 0:04:58.6]} 2. d4 {[%clk 0:04:55.3]}
2... d5 {[%clk 0:04:57.3]} 3. exd5 {[%clk 0:04:54.2]} 3... exd5 {[%clk
0:04:56.2]} 4. Nf3 {[%clk 0:04:52.8]} 4... Bd6 {[%clk 0:04:55.4]} 5. c4 {[%clk
0:04:50.6]} 5... c6 {[%clk 0:04:52.3]} 6. Nc3 {[%clk 0:04:45.1]} 6... Ne7 {[%clk
0:04:50.6]} 7. c5 {[%clk 0:04:41.9]} 7... Bc7 {[%clk 0:04:48.5]} 8. Bd3 {[%clk
0:04:39.8]} 8... b6 {[%clk 0:04:47.3]} 9. b4 {[%clk 0:04:36.4]} 9... a5 {[%clk
0:04:46.2]} 10. Ba3 {[%clk 0:04:25.5]} 10... axb4 {[%clk 0:04:41]} 11. Bxb4
{[%clk 0:04:24]} 11... Na6 {[%clk 0:04:37.5]} 12. cxb6 {[%clk 0:04:13.9]} 12...
Nxb4 {[%clk 0:04:25.9]} 13. bxc7 {[%clk 0:04:12.2]} 13... Nxd3+ {[%clk
0:04:23.9]} 14. Qxd3 {[%clk 0:04:09.8]} 14... Qxc7 {[%clk 0:04:22.7]} 15. O-O
{[%clk 0:04:06.8]} 15... Ba6 {[%clk 0:04:20.6]} 16. Qe3 {[%clk 0:03:56.9]} 16...
Bxf1 {[%clk 0:04:18.7]} 17. Rxf1 {[%clk 0:03:55.3]} 17... O-O {[%clk 0:04:17.2]}
18. Ne5 {[%clk 0:03:53]} 18... f6 {[%clk 0:04:13.6]} 19. Ng4 {[%clk 0:03:50.1]}
19... Qd6 {[%clk 0:04:08.9]} 20. f4 {[%clk 0:03:40.6]} 20... Rfe8 {[%clk
0:04:03.3]} 21. Qg3 {[%clk 0:03:37.2]} 21... Nf5 {[%clk 0:03:52.2]} 22. Qd3
{[%clk 0:03:29.7]} 22... Qe6 {[%clk 0:03:27.4]} 23. Kh1 {[%clk 0:03:18.6]} 23...
Ra3 {[%clk 0:03:04.1]} 24. Qc2 {[%clk 0:03:14.4]} 24... Nxd4 {[%clk 0:03:00.3]}
25. Qb2 {[%clk 0:03:11.7]} 25... Raa8 {[%clk 0:02:25.8]} 26. h3 {[%clk
0:03:05.5]} 26... Nf5 {[%clk 0:02:17.3]} 27. Kh2 {[%clk 0:03:01.5]} 27... d4
{[%clk 0:02:15.9]} 28. Nd1 {[%clk 0:02:56.7]} 28... c5 {[%clk 0:02:14.5]} 29.
Qc2 {[%clk 0:02:39.1]} 29... c4 {[%clk 0:02:09]} 30. Nb2 {[%clk 0:02:34.6]}
30... c3 {[%clk 0:02:02.9]} 31. Nd3 {[%clk 0:02:32]} 31... Rxa2 {[%clk
0:02:01.2]} 32. Qb1 {[%clk 0:02:24.1]} 32... Rd2 {[%clk 0:01:57.6]} 33. Nc5
{[%clk 0:02:22.5]} 33... Qe2 {[%clk 0:01:51.5]} 34. Rg1 {[%clk 0:02:20.7]} 34...
Nh4 {[%clk 0:01:48.4]} 35. Qb3+ {[%clk 0:02:12.5]} 35... Kh8 {[%clk 0:01:45.8]}
36. Qf7 {[%clk 0:02:09.5]} 36... Nf3+ {[%clk 0:01:40.4]} 37. Kh1 {[%clk
0:02:05.7]} 37... Qxg2+ {[%clk 0:01:34.4]} 38. Rxg2 {[%clk 0:02:01.6]} 38...
Re1+ {[%clk 0:01:33.9]} 39. Rg1 {[%clk 0:01:56.8]} 39... Rxg1# {[%clk
0:01:32.8]} 0-1

[Event "Live Chess"]
[Site "Chess.com"]
[Date "2024.06.02"]
[Round "-"]
[White "asingardenof"]
[Black "Frankie_Badacsonyi"]
[Result "0-1"]
[WhiteElo "626"]
[BlackElo "2405"]
[TimeControl "300"]
[EndTime "18:47:31 PDT"]
[Termination "Frankie_Badacsonyi won by resignation"]

1. d4 {[%clk 0:04:45.9]} 1... d5 {[%clk 0:04:57.5]} 2. c4 {[%clk 0:04:44.6]}
2... c6 {[%clk 0:04:56.5]} 3. Nc3 {[%clk 0:04:40.3]} 3... Nf6 {[%clk 0:04:55.1]}
4. Nf3 {[%clk 0:04:40.1]} 4... dxc4 {[%clk 0:04:54.1]} 5. e3 {[%clk 0:04:38.8]}
5... b5 {[%clk 0:04:50.9]} 6. Be2 {[%clk 0:04:33.7]} 6... e6 {[%clk 0:04:48.8]}
7. O-O {[%clk 0:04:32.3]} 7... Bb7 {[%clk 0:04:46.5]} 8. e4 {[%clk 0:04:18.1]}
8... Be7 {[%clk 0:04:44.4]} 9. Bf4 {[%clk 0:04:14.3]} 9... O-O {[%clk 0:04:43]}
10. Qd2 {[%clk 0:04:08.3]} 10... a6 {[%clk 0:04:41.9]} 11. a3 {[%clk 0:04:02.1]}
11... Nbd7 {[%clk 0:04:39.2]} 12. b4 {[%clk 0:03:52.6]} 12... cxb3 {[%clk
0:04:35.6]} 13. Bd1 {[%clk 0:03:42.1]} 13... Nb6 {[%clk 0:03:58.3]} 14. Bxb3
{[%clk 0:03:19.3]} 14... c5 {[%clk 0:03:57.1]} 15. d5 {[%clk 0:03:08.7]} 15...
exd5 {[%clk 0:03:54.6]} 16. exd5 {[%clk 0:03:02.5]} 16... Nfxd5 {[%clk
0:03:53.3]} 17. Nxd5 {[%clk 0:02:59.4]} 17... Bxd5 {[%clk 0:03:52]} 18. Bxd5
{[%clk 0:02:58]} 18... Qxd5 {[%clk 0:03:51.1]} 19. Qxd5 {[%clk 0:02:56.2]} 19...
Nxd5 {[%clk 0:03:51]} 20. Ne5 {[%clk 0:02:50.8]} 20... Nxf4 {[%clk 0:03:49.2]}
21. Nd7 {[%clk 0:02:46.3]} 21... Rfd8 {[%clk 0:03:46.9]} 22. Nxc5 {[%clk
0:02:44.8]} 22... Bxc5 {[%clk 0:03:45]} 23. Rac1 {[%clk 0:02:39.3]} 23... Ne2+
{[%clk 0:03:43.8]} 24. Kh1 {[%clk 0:02:28.8]} 24... Nxc1 {[%clk 0:03:43.7]} 25.
Rxc1 {[%clk 0:02:28.4]} 25... Rac8 {[%clk 0:03:42]} 26. h3 {[%clk 0:02:26.1]}
26... Bxa3 {[%clk 0:03:40.7]} 27. Rxc8 {[%clk 0:02:24.9]} 27... Rxc8 {[%clk
0:03:40.6]} 28. Kh2 {[%clk 0:02:23.1]} 28... Bd6+ {[%clk 0:03:39]} 29. g3 {[%clk
0:02:20.7]} 29... b4 {[%clk 0:03:38.2]} 0-1